Cogmind - Beta 9.4 @@@ ROGUE MODE // 2020.02.05 @ 11:30:49 Player: SHADOWELITE7 Result: Destroyed by G-34 Mercenary with Small Laser Performance ------------- Evolutions (1) 500 Regions Visited (2) 400 Robots Destroyed (15) 75 Value Destroyed (543) 543 Prototype IDs (0) 0 Alien Tech Used (0) 0 Bonus (0) 0 TOTAL SCORE: 1518 Bonus ------- None Cogmind --------- Core Integrity 0/400 Matter 300/300 Energy 100/100 System Corruption 0% Temperature Cool (6) Movement Core (100) Ox1 Location -9/Materials Parts ------- > --- POWER (1) -------- (None) > --- PROPULSION (2) --- (None) > --- UTILITY (2) ------ Small Storage Unit Signal Interpreter > --- WEAPON (4) ------- (None) > --- INVENTORY (6) ---- Light Ion Engine Peak State ------------ > --- POWER ------------ Light Ion Engine > --- PROPULSION ------- Light Treads Light Treads > --- UTILITY ---------- Small Storage Unit Signal Interpreter > --- WEAPON ----------- Particle Cannon Particle Cannon Particle Cannon Particle Cannon > --- INVENTORY -------- Light Ion Engine EM Pulse Gun Assault Rifle Light Assault Rifle [Rating: 13] Favorites ----------- Power Light Ion Engine Engine Light Ion Engine Propulsion Light Treads Treads Light Treads Utility Small Storage Unit Storage Small Storage Unit Processor Signal Interpreter Weapon Light Cannon Energy Gun EM Pulse Gun Energy Cannon Particle Cannon Ballistic Gun Assault Rifle Ballistic Cannon Light Cannon Launcher Grenade Launcher Build | -11 -10 -9 ------- Run | Scr Mat Mat Slots Evolved 2 | . . 2 Power . | . . . Propulsion . | . . . Utility . | . . . Weapon 2 | . . 2 Parts Attached 20 | 6 3 11 Power 2 | 1 . 1 Engine 2 | 1 . 1 Core . | . . . Reactor . | . . . Propulsion 3 | 2 . 1 Treads 3 | 2 . 1 Leg . | . . . Wheel . | . . . Hover . | . . . Flight . | . . . Utility 2 | 1 1 . Device . | . . . Storage 1 | 1 . . Processor 1 | . 1 . Hackware . | . . . Protection . | . . . Artifact . | . . . Weapon 13 | 2 2 9 Energy Gun 1 | . . 1 Energy Cannon 6 | . . 6 Ballistic Gun 4 | 2 . 2 Ballistic Cannon 1 | . 1 . Launcher 1 | . 1 . Special Weapon . | . . . Impact Weapon . | . . . Slashing Weapon . | . . . Piercing Weapon . | . . . Special Melee Weapon . | . . . Unidentified Prototypes . | . . . Parts Lost 12 | . . 12 Power 1 | . . 1 Propulsion 2 | . . 2 Utility . | . . . Weapon 9 | . . 9 Highest Loss Streak 5 | . . 5 Average Slot Usage (%) 85 | . 96 75 Engine 11 | . 14 9 Treads 21 | . 28 15 Storage 12 | . 14 11 Processor 10 | . 10 11 Energy Cannon 7 | . . 15 Ballistic Gun 7 | . 12 2 Ballistic Cannon 6 | . 6 6 Launcher 6 | . 9 3 Naked Turns . | . . . Heaviest Build 23 | 10 13 23 Greatest Support 40 | 40 40 40 Greatest Overweight (x) 7 | . . 7 Average Overweight (x) . | . . . Largest Inventory Capacity 6 | 6 6 6 Average Capacity 5 | 5 6 6 Most Carried 6 | 4 6 6 Average Carried 3 | 1 3 4 Final Capacity 6 | 6 6 6 Final Carried 6 | 2 6 1 Class Distribution -------------------- 72% | Mutant 28% | Gunner Dominant Class ---------------- Mutant | -10/Materials Gunner | -9/Materials Resources | -11 -10 -9 ----------- Run | Scr Mat Mat Matter Collected 531 | 233 103 195 Remotely . | . . . Salvage Created 505 | . 252 253 Parts 33 | . 19 14 Haulers Intercepted . | . . . Recyclers Shooed 1 | . 1 . Parts Field Recycled . | . . . Retrieved Matter . | . . . Parts Self-Destructed . | . . . Prevented . | . . . Kills | -11 -10 -9 ------- Run | Scr Mat Mat Combat Hostiles Destroyed 13 | . 7 6 Guns 1 | . 1 . Cannons 7 | . 1 6 AOE 5 | . 5 . Classes Destroyed 5 | . 2 3 Worker 1 | . . 1 Recycler 1 | . 1 . Grunt 10 | . 7 3 Duelist 1 | . . 1 Sentry 2 | . . 2 Best Kill Streak 6 | . 6 4 Combat Bots Only 5 | . 5 4 Max Kills in Single Turn 4 | . 4 1 Gunslinging . | . . . Exploded 4 | . 4 . Melee . | . . . Uniques/NPCs Destroyed . | . . . Combat | -11 -10 -9 -------- Run | Scr Mat Mat Damage Taken 1576 | . 270 1306 Core 442 | . 33 409 Absorbed by Shields . | . . . Core Remaining (%) 93 | 100 86 . Volleys Fired 31 | . 7 24 Largest 4 | . 2 4 Hottest 272 | . 65 272 Shots Fired 78 | . 14 64 Gun 22 | . 4 18 Cannon 49 | . 3 46 Launcher 7 | . 7 . Special . | . . . Kinetic 35 | . 7 28 Thermal 33 | . . 33 Explosive 7 | . 7 . Electromagnetic 3 | . . 3 Robot Hit Streak 15 | . 9 15 Robot Miss Streak 2 | . 1 2 Penetration Max . | . . . Secondary Targets . | . . . Shots Hit Robots 56 | . 11 45 Core Hits 31 | . 13 18 Critical Hits . | . . . Critical Kills . | . . . Critical Parts Destroyed . | . . . Melee Attacks . | . . . Impact . | . . . Slashing . | . . . Piercing . | . . . Sneak Attacks . | . . . Combat Hostiles . | . . . Follow-up Attacks . | . . . Damage Inflicted 1250 | . 579 671 Guns 190 | . 42 148 Cannons 555 | . 53 502 Explosions 483 | . 483 . Melee . | . . . Ramming 22 | . 1 21 Kinetic 386 | . 95 291 Thermal 332 | . . 332 Explosive 483 | . 483 . Electromagnetic 27 | . . 27 Impact . | . . . Slashing . | . . . Piercing . | . . . Highest Corruption . | . . . Average Corruption . | . . . Corruption Purged . | . . . Overload Shots . | . . . Overflow Damage 12 | . 12 . Projectiles 12 | . 12 . Explosions . | . . . Melee . | . . . Knockbacks 1 | . 1 . Impact . | . . . Kinetic 1 | . 1 . Secondary . | . . . Self-Inflicted Damage 45 | . 38 7 Shots 2 | . 2 . Rammed 18 | . 1 17 Targets Rammed 18 | . 1 17 Kicked . | . . . Crushed . | . . . Highest Temperature 568 | . 39 568 Average Temperature 222 | . 20 246 Received Heat Transfer 558 | . 129 429 Effects 13 | . . 13 Shutdowns 4 | . . 4 Energy Bleed 3 | . . 3 Short Circuit 1 | . . 1 Damage (minor) 4 | . . 4 Damage (core) 1 | . . 1 Siege Activations . | . . . Robots Corrupted . | . . . Combat Hostiles . | . . . Parts Fried . | . . . Impact Corruptions . | . . . Robots Melted . | . . . Combat Hostiles . | . . . Parts Melted 2 | . . 2 Heat Transferred 666 | . . 666 Parts Sabotaged . | . . . Parts Stolen . | . . . Parts Stripped . | . . . Power Chain Reactions . | . . . Missiles Intercepted . | . . . Alert | -11 -10 -9 ------- Run | Scr Mat Mat Peak Influence 195 | . 195 145 Average Influence 82 | . 113 70 Maximum Alert Level . | . . . Low Security (%) 100 | 100 100 100 Level 1 . | . . . Level 2 . | . . . Level 3 . | . . . Level 4 . | . . . Level 5 . | . . . High Security . | . . . Max Security . | . . . Squads Dispatched . | . . . Investigation . | . . . Extermination . | . . . Reinforcement . | . . . Assault . | . . . Garrison . | . . . Intercept . | . . . Construction Impeded . | . . . Haulers Reinforced . | . . . Stealth | -11 -10 -9 --------- Run | Scr Mat Mat Distress Signals 2 | . . 2 Communications Jammed . | . . . Distress Signals . | . . . Times Spotted 22 | . 9 13 Peak Tracking Total 6 | . 6 4 Tactical Retreats 1 | . . 1 Traps | -11 -10 -9 ------- Run | Scr Mat Mat Traps Triggered . | . . . Indirectly . | . . . Trap Hack Attempts . | . . . Triggered . | . . . Disarmed . | . . . Reprogrammed . | . . . Reused . | . . . Traps Extracted . | . . . Installed . | . . . Triggered . | . . . Machines | -11 -10 -9 ---------- Run | Scr Mat Mat Machines Disabled 2 | . 2 . Max in Single Turn 2 | . 2 . Machines Sabotaged . | . . . Garrisons Compromised . | . . . Overloaded Fab Kills . | . . . Fab Network Shutdowns . | . . . Hacking | -11 -10 -9 --------- Run | Scr Mat Mat Machines Accessed 1 | . 1 . Terminals 1 | . 1 . Fabricators . | . . . Repair Stations . | . . . Recycling Units . | . . . Scanalyzers . | . . . Garrison Access . | . . . Total Hacks 3 | . 3 . Successful . | . . . Failed 3 | . 3 . Catastrophic . | . . . Database Lockouts . | . . . Manual . | . . . Terminals 3 | . 3 . Fabricators . | . . . Repair Stations . | . . . Recycling Units . | . . . Scanalyzers . | . . . Garrison Access . | . . . Terminal Hacks . | . . . Fabricator Hacks . | . . . Repair Station Hacks . | . . . Recycling Unit Hacks . | . . . Scanalyzer . | . . . Garrison Access Hacks . | . . . Unauthorized Hacks . | . . . Terminals . | . . . Fabricators . | . . . Repair Stations . | . . . Recycling Units . | . . . Scanalyzers . | . . . Garrison Access . | . . . Data Cores Recovered . | . . . Used . | . . . Hacking Detections 1 | . 1 . Full Trace Events . | . . . Feedback Events . | . . . Feedback Blocked . | . . . Robot Schematics Acquired . | . . . Robots Built . | . . . Matter . | . . . Time . | . . . Total Robot Build Rating . | . . . Part Schematics Acquired . | . . . Parts Built . | . . . Matter . | . . . Time . | . . . Total Part Build Rating . | . . . Parts Repaired . | . . . Time . | . . . Parts Recycled . | . . . Recycled Matter . | . . . Retrieved Matter . | . . . Retrieved Components . | . . . Parts Scanalyzed . | . . . Part Schematics Acquired . | . . . Parts Damaged . | . . . Bothacking | -11 -10 -9 ------------ Run | Scr Mat Mat Used RIF Installer . | . . . Robots Hacked . | . . . Non-combat . | . . . Combat . | . . . Robot Hacks Applied . | . . . Relay Couplers Released . | . . . Robots Rewired . | . . . Allies Hacked . | . . . Hacks Repelled . | . . . Allies | -11 -10 -9 -------- Run | Scr Mat Mat Total Allies . | . . . Largest Group . | . . . Highest-Rated Group . | . . . Highest-Rated Ally . | . . . Total Orders . | . . . Ally Attacks . | . . . Total Damage . | . . . Kills . | . . . Allies Corrupted . | . . . Allies Melted . | . . . Intel | -11 -10 -9 ------- Run | Scr Mat Mat Robot Analysis Total . | . . . Derelict Logs Recovered . | . . . Drone Launches . | . . . Drone Recoveries . | . . . Exploration | -11 -10 -9 ------------- Run | Scr Mat Mat Turns Passed 908 | 87 402 419 Spaces Moved 460 | 54 232 174 Core 41 | 11 . 30 Treads 419 | 43 232 144 Legs . | . . . Wheels . | . . . Hover . | . . . Flight . | . . . Fastest Speed 50 | 50 160 100 Average Speed 162 | 137 160 172 Slowest Speed 400 | 160 160 400 Overloaded Moves . | . . . Propulsion Burnouts . | . . . Robots Hopped . | . . . Cave-ins Triggered . | . . . Exploration Rate (%) 17 | 4 34 13 Regions Visited 2 Branch Regions . Pre-discovered Areas . | . . . Known Exits Taken 1 | . 1 . Unknown Exits Taken 1 | 1 . . Scrap Searched . | . . . Spaces Dug . | . . . Terrain Destroyed 52 | . 52 . Melee . | . . . Projectile . | . . . AOE 52 | . 52 . Actions | -11 -10 -9 --------- Run | Scr Mat Mat Total 549 | 67 249 233 Wait . | . . . Move 458 | 53 231 174 Hop . | . . . Pick Up 16 | 8 5 3 Fast Attach 3 | . . 3 Attach 17 | 6 3 8 Detach 2 | . 2 . Swap . | . . . Drop 4 | . . 4 Fire 31 | . 7 24 Melee . | . . . Ram 17 | . . 17 Kick . | . . . Crush 1 | . 1 . Escape Stasis . | . . . Rewire . | . . . Trap . | . . . Miscellaneous . | . . . Route ------- -11/Scrapyard -10/Materials -9/Materials History --------- Turn | Location | Event 4 | -11/Scrapyard | Discovered new exit (range 16) 88 | -11/Scrapyard | Entered Materials 326 | -10/Materials | Build established: Mutant 459 | -10/Materials | Discovered new exit (range 15) 483 | -10/Materials | Identified exit to Materials 490 | -10/Materials | Entered another Materials area 490 | -9/Materials | Evolved 2 slots: Weapon x2 882 | -9/Materials | Lost 5 parts (1p4w) 889 | -9/Materials | Core integrity fell below 50% 903 | -9/Materials | Core integrity fell below 20% 909 | -9/Materials | Destroyed by G-34 Mercenary with Small Laser Last Messages --------------- 00865_ R-06 Scavenger collects Wheel. 00867_ Destroyed Sml. Laser. 00868_ K-01 Serf collects debris. 00870_ Acquired 3 matter. 00873_ Acquired 11 matter. 00879_ Acquired 4 matter. 00880_ R-06 Scavenger collects Sml. Matter Pod. 00880_ K-01 Serf collects debris. 00882_ Acquired 3 matter. 00883_ Acquired 4 matter. 00887_ EM Pulse Gun destroyed. 00890_ R-06 Scavenger collects Wheel. 00897_ K-01 Serf collects debris. 00897_ Lgt. Assault Rifle destroyed. 00900_ Assault Rifle destroyed. 00901_ K-01 Serf collects debris. 00902_ Slammed into L-31 Rogue. 00904_ Acquired 1 matter. 00904_ K-01 Serf collects debris. 00906_ Slammed into L-31 Rogue. Map ----- +----------------------------------------------------+ | ?????????# # ??????????????? | | ?????????# # ??????????????? | | ?????????########## ######## ####????????????????? | | ??????????????????# #???#??# #???????????????????? | | ??????????????????# ### ##?# #???????????????????? | | ???????????????#### # #?# #???????????????????? | | ???????????????# #?# #???????????????????? | | ???????????????# # #?# #???????????????????? | | ???????????????# ######## #???????????????????? | | ???????????????# #???????????????????? | | ???????????????# ############???????????????????? | | ???????????????# #????? ????????????????????????? | | ???????????#+#?# #????? ????????????????????????? | | ???????????# #?# #????? ????????????????????????? | | ???????????# ### #????? ??????????????????????? | | ????######## #????? ""??????????????????????? | | + *% = #????? ""??????????????????????? | | ????######### #????? ""??????#???????????????? | | ?????#??????# ==#????? ????? #???????????????? | | ?????# ????# #???###+###?? #???????????????? | | ?????# ??# ##### ###+#########????????? | | ?????# # ^a ???????? | | ?????# !!! + w u ???????? | | ?????# !! # % g ???????? | | ?????# !! # ######### %%%#######??????????????? | | ?????########+##########l@ ##????????????????????? | | ??????????# #%% #?????????????????????? | | ??????????# # #?????????????????????? | | ??????????# + #?????????????????????? | | ??????????# # k#?????????????????????? | | ??????????# # #?????????????????????? | | ??????????############## % +?????????????????????? | | ????????????????????#####+#####??????????????????? | | ????????????????????# #??????????????????? | | ????????????????????# #??????????????????? | | ????????????????????# #??????????????????? | | ????????????????????# ! = #??????????????????? | | ???????????????????##% = #??????????????????? | | ???????????????????# ! ] == #??????????????????? | | ???????????????????## #??????????????????? | | ????????????????????# #??????????????????? | | ????????????????????###########??????????????????? | | ?????????????????????????????????????????????????? | | ?????????????????????????????????????????????????? | | ?????????????????????????????????????????????????? | | ?????????????????????????????????????????????????? | | ?????????????????????????????????????????????????? | | ?????????????????????????????????????????????????? | | ?????????????????????????????????????????????????? | | ?????????????????????????????????????????????????? | +----------------------------------------------------+ Best States ------------- Heat Dissipation 28 Energy Generation 10 Energy Capacity 125 Matter Stores 300 Matter Capacity 300 Sight Range 16 Terrain Scan Density 10 Evasion (%) 40 Recoil Reduction 2 Item Schematics ----------------- None Robot Schematics ------------------ None Fabricated ------------ Nothing Alien Tech Used ----------------- None Achievements -------------- None Challenges ------------ None Game ------ Seed VariableMatterLog Manual? 0 Play Time 00:09:20 Cumulative 17.1 hours Start 2020.02.04 @ 11:58:10 End 2020.02.05 @ 11:30:49 Sessions 5 Manual Loads 0 Difficulty Rogue Special Mode None Game No. 74 Rogue 70 Adventurer 0 Explorer 4 Win Type - Total 0 Types 0/0/0/0/0/0/0 Lore% 21 Gallery% 16 Achievement% 16 Wizard Run 0 Options --------- ASCII 0 Keyboard 0 Movement Arrows Keybinds 0 Fullscreen 1 Font 18/SmallcapsGlow Map View 76x50 Tactical HUD 1 Map Filters NONE Filters NONE Steam 1 RUN: 7d70ea62-0269-4994-9f84-36a8ff9d8394